fUSD/lending_fUSD_20240220
["ID","MTS","AMOUNT","RATE_DAILY","PERIOD"]
[314575329,1708429835974,-500.0,0.0003589,2]
[314575330,1708429835984,-2278.8,0.0003589,2]
[314575331,1708429835993,-273.91928429,0.0003589,2]
[314575332,1708429836003,-500.0,0.0003589,2]
[314575333,1708429836017,-500.0,0.0003589,2]
[314575334,1708429836027,-615.43,0.0003589,2]
[314575335,1708429836037,-500.0,0.0003589,2]
[314575336,1708429836047,-500.0,0.0003589,2]
[314575337,1708429836058,-500.0,0.0003589,2]
[314575338,1708429836068,-500.0,0.0003589,2]
[314575339,1708429836079,-500.0,0.0003589,2]
[314575340,1708429836089,-543.39,0.0003589,2]
[314575341,1708429836100,-500.0,0.0003589,2]
[314575342,1708429836110,-962.24,0.0003589,2]
[314575343,1708429836120,-500.0,0.0003589,2]
[314575344,1708429836129,-309.16666785,0.0003589,2]
[314575345,1708429836139,-247.47692606,0.0003589,2]
[314575346,1708429836149,-902.48976297,0.00036064,2]
[314575347,1708429836158,-500.0,0.00036163,2]
[314575348,1708429836168,-500.0,0.00036163,2]
[314575349,1708429836178,-500.0,0.00036163,2]
[314575350,1708429836189,-500.0,0.00036163,2]
[314575351,1708429836198,-500.0,0.00036163,2]
[314575352,1708429836208,-323.31,0.00036163,2]
[314575353,1708429836219,-500.0,0.00036163,2]
[314575354,1708429836229,-500.0,0.00036163,2]
[314575355,1708429836238,-500.0,0.00036163,2]
[314575356,1708429836248,-500.0,0.00036163,2]
[314575357,1708429836258,-500.0,0.00036163,2]
[314575358,1708429836268,-500.0,0.00036163,2]
[314575359,1708429836279,-500.0,0.00036163,2]
[314575360,1708429836289,-500.0,0.00036163,2]
[314575361,1708429836300,-500.0,0.00036163,2]
[314575362,1708429836310,-500.0,0.00036163,2]
[314575363,1708429836320,-500.0,0.00036163,2]
[314575364,1708429836330,-603.78,0.00036163,2]
[314575365,1708429836340,-500.0,0.00036163,2]
[314575366,1708429836353,-500.0,0.00036163,2]
[314575367,1708429836363,-506.92,0.00036163,2]
[314575368,1708429836373,-500.0,0.00036163,2]
[314575369,1708429836383,-500.0,0.00036163,2]
[314575370,1708429836392,-500.0,0.00036163,2]
[314575371,1708429836402,-3142.23,0.00036163,2]
[314575372,1708429836412,-500.0,0.00036163,2]
[314575373,1708429836421,-500.0,0.00036163,2]
[314575374,1708429836431,-500.0,0.00036163,2]
[314575375,1708429836441,-500.0,0.00036163,2]
[314575376,1708429836450,-500.0,0.00036163,2]
[314575377,1708429836459,-500.0,0.00036163,2]
[314575378,1708429836470,-648.5,0.00036163,2]
[314575379,1708429836479,-500.0,0.00036163,2]
[314575380,1708429836489,-264.63506744,0.00036164,2]
[314575381,1708429836499,-500.0,0.00036164,2]
[314575382,1708429836508,-1000.0,0.00036164,7]
[314575383,1708429836518,-500.0,0.00036164,2]
[314575384,1708429836527,-500.0,0.00036164,2]
[314575385,1708429836536,-500.54,0.00036164,2]
[314575386,1708429836548,-500.0,0.00036164,2]
[314575387,1708429836558,-500.0,0.00036164,2]
[314575388,1708429836567,-500.0,0.00036164,2]
[314575389,1708429836577,-500.0,0.00036164,2]
[314575390,1708429836587,-500.0,0.00036164,2]
[314575391,1708429836597,-500.0,0.00036164,2]
[314575392,1708429836611,-500.0,0.00036164,2]
[314575393,1708429836621,-500.0,0.00036164,2]
[314575394,1708429836631,-744.15,0.00036164,2]
[314575395,1708429836640,-500.0,0.00036164,2]
[314575396,1708429836650,-500.0,0.00036164,2]
[314575397,1708429836659,-892.39,0.00036164,2]
[314575398,1708429836669,-500.0,0.00036164,2]
[314575399,1708429836679,-505.67,0.00036164,2]
[314575400,1708429836689,-500.0,0.00036164,2]
[314575401,1708429836698,-500.0,0.00036164,2]
[314575402,1708429836709,-500.0,0.00036164,2]
[314575403,1708429836718,-500.0,0.00036164,2]
[314575404,1708429836729,-500.0,0.00036164,2]
[314575405,1708429836738,-500.0,0.00036164,2]
[314575406,1708429836748,-749.37,0.00036164,2]
[314575407,1708429836758,-500.0,0.00036164,2]
[314575408,1708429836768,-541.65,0.00036164,2]
[314575409,1708429836778,-567.33,0.00036164,2]
[314575410,1708429836788,-500.0,0.00036164,2]
[314575411,1708429836797,-225.21266958,0.00036164,2]
[314575412,1708429836807,-500.0,0.00036164,2]
[314575413,1708429836816,-500.0,0.00036164,2]
[314575414,1708429836825,-500.0,0.00036164,2]
[314575415,1708429836835,-1065.98,0.00036164,2]
[314575416,1708429836844,-500.0,0.00036164,2]
[314575417,1708429836856,-851.53,0.00036164,2]
[314575418,1708429836866,-500.0,0.00036164,2]
[314575419,1708429836875,-2278.8,0.00036164,2]
[314575420,1708429836885,-500.0,0.00036164,2]
[314575421,1708429836894,-500.0,0.00036164,2]
[314575422,1708429836904,-615.43,0.00036164,2]
[314575423,1708429836913,-500.0,0.00036164,2]
[314575424,1708429836922,-500.0,0.00036164,2]
[314575425,1708429836931,-500.0,0.00036164,2]
[314575426,1708429836941,-500.0,0.00036164,2]
[314575427,1708429836950,-962.24,0.00036164,2]
[314575428,1708429836959,-500.0,0.00036164,2]
[314575429,1708429836968,-150.0,0.0003626,20]
[314575430,1708429836977,-257.92374309,0.00036379,2]
[314575431,1708429836987,-61690.95487234,0.00036389,2]
[314575432,1708429836996,-24914.37697086,0.00036389,2]
[314575433,1708429837330,-36776.57790142,0.00036389,2]
[314575434,1708429837340,-187102.0,0.00036395,2]
[314575435,1708429837350,-500.0,0.00036437,2]
[314575436,1708429837359,-500.0,0.00036437,2]
[314575437,1708429837368,-500.0,0.00036437,2]
[314575438,1708429837377,-500.0,0.00036437,2]
[314575439,1708429837386,-523.26,0.00036437,2]
[314575440,1708429837395,-500.0,0.00036437,2]
[314575441,1708429837405,-500.0,0.00036437,2]
[314575442,1708429837414,-500.0,0.00036437,2]
[314575443,1708429837424,-309.64850057,0.00036437,30]
[314575444,1708429837433,-568.58,0.00036437,2]
[314575445,1708429837442,-514.18,0.00036437,2]
[314575446,1708429837451,-500.0,0.00036437,2]
[314575447,1708429837506,-603.78,0.00036437,2]
[314575448,1708429837516,-500.0,0.00036437,2]
[314575449,1708429837525,-500.0,0.00036437,2]
[314575450,1708429837536,-500.0,0.00036437,2]
[314575451,1708429837545,-500.0,0.00036437,2]
[314575452,1708429837554,-3142.23,0.00036437,2]
[314575453,1708429837563,-500.0,0.00036437,2]
[314575454,1708429837572,-500.0,0.00036437,2]
[314575455,1708429837581,-500.0,0.00036437,2]
[314575456,1708429837590,-500.0,0.00036437,2]
[314575457,1708429837600,-648.5,0.00036437,2]
[314575458,1708429837609,-500.0,0.00036437,2]
[314575459,1708429837618,-500.0,0.00036438,2]
[314575460,1708429837627,-1000.0,0.00036438,7]
[314575461,1708429837637,-500.0,0.00036438,2]
[314575462,1708429837645,-500.0,0.00036438,2]
[314575463,1708429837655,-500.54,0.00036438,2]
[314575464,1708429837663,-500.0,0.00036438,2]
[314575465,1708429837672,-500.0,0.00036438,2]
[314575466,1708429837681,-500.0,0.00036438,2]
[314575467,1708429837692,-500.0,0.00036438,2]
[314575468,1708429837701,-500.0,0.00036438,2]
[314575469,1708429837711,-595.0467332,0.00036438,2]
[314575470,1708429837721,-216.34636557,0.00036438,2]
[314575472,1708429837730,-500.0,0.00036438,2]
[314575474,1708429837739,-744.15,0.00036438,2]
[314575476,1708429837749,-332.83541616,0.00036438,2]
[314575477,1708429837759,-892.39,0.00036438,2]
[314575478,1708429837767,-500.0,0.00036438,2]
[314575479,1708429837776,-500.0,0.00036438,2]
[314575480,1708429837786,-500.0,0.00036438,2]
[314575481,1708429837795,-412.32,0.00036438,2]
[314575482,1708429837804,-500.0,0.00036438,2]
[314575483,1708429837813,-500.0,0.00036438,2]
[314575484,1708429837822,-500.0,0.00036438,2]
[314575485,1708429837831,-749.37,0.00036438,2]
[314575486,1708429837840,-500.0,0.00036438,2]
[314575487,1708429837850,-541.65,0.00036438,2]
[314575488,1708429837859,-567.33,0.00036438,2]
[314575489,1708429837868,-500.0,0.00036438,2]
[314575490,1708429837877,-500.0,0.00036438,2]
[314575491,1708429837886,-500.0,0.00036438,2]
[314575492,1708429837895,-500.0,0.00036438,2]
[314575493,1708429837904,-1065.98,0.00036438,2]
[314575494,1708429837913,-851.53,0.00036438,2]
[314575495,1708429837922,-500.0,0.00036438,2]
[314575496,1708429837931,-2278.8,0.00036438,2]
[314575497,1708429837940,-500.0,0.00036438,2]
[314575498,1708429837950,-615.43,0.00036438,2]
[314575499,1708429837959,-500.0,0.00036438,2]
[314575500,1708429837968,-500.0,0.00036438,2]
[314575501,1708429837978,-962.24,0.00036438,2]
[314575502,1708429837988,-500.0,0.00036438,2]
[314575503,1708429837997,-157.95179592,0.00036625,2]
[314575504,1708429838011,-535.90876336,0.00036663,2]
[314575505,1708429838020,-500.0,0.00036711,2]
[314575506,1708429838030,-500.0,0.00036711,2]
[314575507,1708429838039,-500.0,0.00036711,2]
[314575508,1708429838048,-500.0,0.00036711,2]
[314575509,1708429838058,-500.0,0.00036711,2]
[314575510,1708429838067,-173.98,0.00036711,2]
[314575511,1708429838076,-500.0,0.00036711,2]
[314575512,1708429838084,-500.0,0.00036711,2]
[314575513,1708429838095,-603.78,0.00036711,2]
[314575514,1708429838106,-500.0,0.00036711,2]
[314575515,1708429838115,-153.32,0.00036711,2]
[314575516,1708429838125,-500.0,0.00036711,2]
[314575517,1708429838135,-3142.23,0.00036711,2]
[314575518,1708429838145,-500.0,0.00036711,2]
[314575519,1708429838154,-500.0,0.00036711,2]
[314575520,1708429838163,-648.5,0.00036711,2]
[314575521,1708429838173,-500.0,0.00036711,2]
[314575522,1708429838183,-500.0,0.00036712,2]
[314575523,1708429838193,-1000.0,0.00036712,7]
[314575524,1708429838202,-546.31968852,0.00036712,2]
[314575525,1708429838210,-500.0,0.00036712,2]
[314575526,1708429838220,-500.54,0.00036712,2]
[314575527,1708429838229,-500.0,0.00036712,2]
[314575528,1708429838238,-500.0,0.00036712,2]
[314575529,1708429838247,-500.0,0.00036712,2]
[314575530,1708429838256,-500.0,0.00036712,2]
[314575531,1708429838265,-500.0,0.00036712,2]
[314575532,1708429838275,-744.15,0.00036712,2]
[314575533,1708429838284,-892.39,0.00036712,2]
[314575534,1708429838294,-500.0,0.00036712,2]
[314575535,1708429838303,-500.0,0.00036712,2]
[314575536,1708429838312,-500.0,0.00036712,2]
[314575537,1708429838321,-500.0,0.00036712,2]
[314575538,1708429838330,-500.0,0.00036712,2]
[314575539,1708429838340,-500.0,0.00036712,2]
[314575540,1708429838350,-749.37,0.00036712,2]
[314575541,1708429838359,-500.0,0.00036712,2]
[314575542,1708429838368,-541.65,0.00036712,2]
[314575543,1708429838377,-567.33,0.00036712,2]
[314575544,1708429838386,-429.44,0.00036712,2]
[314575545,1708429838395,-500.0,0.00036712,2]
[314575546,1708429838404,-500.0,0.00036712,2]
[314575547,1708429838414,-500.0,0.00036712,2]
[314575548,1708429838423,-1065.98,0.00036712,2]
[314575549,1708429838432,-851.53,0.00036712,2]
[314575550,1708429838441,-500.0,0.00036712,2]
[314575551,1708429838449,-2278.8,0.00036712,2]
[314575552,1708429838458,-500.0,0.00036712,2]
[314575553,1708429838467,-615.43,0.00036712,2]
[314575554,1708429838477,-500.0,0.00036712,2]
[314575555,1708429838486,-538.38253531,0.00036712,2]
[314575556,1708429838495,-962.24,0.00036712,2]
[314575557,1708429838504,-500.0,0.00036712,2]
[314575558,1708429838513,-153.38696716,0.00036718,2]
[314575559,1708429838522,-153.75,0.00036733,2]
[314575560,1708429838531,-1867.0,0.00036763,2]
[314575561,1708429838540,-2692.0,0.00036763,2]
[314575562,1708429838549,-1371.0,0.00036763,2]
[314575563,1708429838558,-954.0,0.00036763,2]
[314575564,1708429838567,-709.0,0.00036763,2]
[314575565,1708429838575,-843.0,0.00036763,2]
[314575566,1708429838584,-216.0,0.00036763,2]
[314575567,1708429838594,-1231.0,0.00036763,2]
[314575568,1708429838604,-654.788,0.00036763,2]
[314575569,1708429838613,-1951.0,0.00036763,2]
[314575570,1708429838622,-1256.0,0.00036763,2]
[314575571,1708429838631,-276.0,0.00036763,2]
[314575572,1708429838639,-1006.0,0.00036763,2]
[314575573,1708429838648,-859.0,0.00036763,2]
[314575574,1708429838657,-430.0,0.00036763,2]
[314575575,1708429838666,-343.0,0.00036763,2]
[314575576,1708429838675,-321.0,0.00036763,2]
[314575577,1708429838685,-2888.0,0.00036763,2]
[314575578,1708429838694,-150.0,0.00036763,2]
[314575579,1708429838703,-1138.0,0.00036763,2]
[314575580,1708429838712,-454.0,0.00036763,2]
[314575581,1708429838721,-389.0,0.00036763,2]
[314575582,1708429838731,-19872.0,0.00036763,2]
[314575583,1708429838740,-2292.0,0.00036763,2]
[314575584,1708429838749,-2931.0,0.00036763,2]
[314575585,1708429838758,-8174.0,0.00036763,2]
[314575586,1708429838767,-4103.0,0.00036763,2]
[314575587,1708429838776,-7564.091,0.00036763,2]
[314575588,1708429838785,-1038.0,0.00036763,2]
[314575589,1708429838794,-11135.12406198,0.00036798,2]
[314575590,1708429838803,-11135.12406197,0.00036798,2]
[314575591,1708429838812,-200.06,0.000368,2]
[314575592,1708429838822,-7610.63,0.00036818,2]
[314575593,1708429838831,-7610.63,0.00036818,2]
[314575594,1708429838840,-7610.63,0.00036818,2]
[314575595,1708429838849,-7610.63,0.00036818,2]
[314575596,1708429838858,-7610.63,0.00036818,2]
[314575597,1708429838867,-7610.63,0.00036818,2]
[314575598,1708429838876,-7610.63,0.00036818,2]
[314575599,1708429838885,-7610.63,0.00036818,2]
[314575600,1708429838894,-7610.63,0.00036818,2]
[314575601,1708429838903,-7610.63,0.00036818,2]
[314575602,1708429838912,-7610.63,0.00036818,2]
[314575603,1708429838921,-7610.63,0.00036818,2]
[314575604,1708429838930,-7610.63,0.00036818,2]
[314575605,1708429838939,-7610.63,0.00036818,2]
[314575606,1708429838948,-7610.63,0.00036818,2]
[314575607,1708429838957,-7610.74409985,0.00036818,2]
[314575608,1708429838966,-1654.620341,0.000369,5]
[314575609,1708429838975,-200.0,0.000369,2]
[314575610,1708429838984,-487.91,0.0003692,2]
[314575611,1708429838993,-433.39,0.00036981,2]
[314575612,1708429839002,-500.0,0.00036985,2]
[314575613,1708429839012,-500.0,0.00036985,2]
[314575614,1708429839023,-500.0,0.00036985,2]
[314575615,1708429839032,-171.74789804,0.00036985,2]
[314575616,1708429839041,-209.94855014,0.00036985,2]
[314575617,1708429839051,-500.0,0.00036985,2]
[314575618,1708429839061,-500.0,0.00036985,2]
[314575619,1708429839071,-603.78,0.00036985,2]
[314575620,1708429839080,-500.0,0.00036985,2]
[314575621,1708429839090,-162.11,0.00036985,2]
[314575622,1708429839100,-3142.23,0.00036985,2]
[314575623,1708429839109,-500.0,0.00036985,2]
[314575624,1708429839118,-500.0,0.00036985,2]
[314575625,1708429839127,-648.5,0.00036985,2]
[314575626,1708429839136,-500.0,0.00036985,2]
[314575627,1708429839145,-150.0,0.00036986,2]
[314575628,1708429839154,-500.0,0.00036986,2]
[314575629,1708429839163,-1000.0,0.00036986,7]
[314575630,1708429839173,-500.0,0.00036986,2]
[314575631,1708429839183,-500.54,0.00036986,2]
[314575632,1708429839192,-500.0,0.00036986,2]
[314575633,1708429839202,-500.0,0.00036986,2]
[314575634,1708429839212,-500.0,0.00036986,2]
[314575635,1708429839221,-500.0,0.00036986,2]
[314575636,1708429839230,-500.0,0.00036986,2]
[314575637,1708429839241,-744.15,0.00036986,2]
[314575638,1708429839250,-892.39,0.00036986,2]
[314575639,1708429839259,-500.0,0.00036986,2]
[314575640,1708429839268,-500.0,0.00036986,2]
[314575641,1708429839277,-500.0,0.00036986,2]
[314575642,1708429839286,-500.0,0.00036986,2]
[314575643,1708429839295,-500.0,0.00036986,2]
[314575644,1708429839305,-500.0,0.00036986,2]
[314575645,1708429839314,-749.37,0.00036986,2]
[314575646,1708429839323,-500.0,0.00036986,2]
[314575647,1708429839332,-541.65,0.00036986,2]
[314575648,1708429839341,-567.33,0.00036986,2]
[314575649,1708429839350,-500.0,0.00036986,2]
[314575650,1708429839359,-500.0,0.00036986,2]
[314575651,1708429839369,-500.0,0.00036986,2]
[314575652,1708429839378,-1065.98,0.00036986,2]
[314575653,1708429839387,-851.53,0.00036986,2]
[314575654,1708429839396,-192.8009382,0.00036986,2]
[314575655,1708429839406,-2278.8,0.00036986,2]
[314575656,1708429839414,-500.0,0.00036986,2]
[314575657,1708429839423,-615.43,0.00036986,2]
[314575658,1708429839433,-500.0,0.00036986,2]
[314575659,1708429839442,-962.24,0.00036986,2]
[314575660,1708429839451,-500.0,0.00036986,2]
[314575661,1708429839460,-1050.0,0.00037,3]
[314575662,1708429839469,-12653.16,0.00037,2]
[314575663,1708429839478,-711.61,0.00037075,2]
[314575664,1708429839487,-256.0,0.00037117,2]
[314575665,1708429839496,-500.0,0.00037259,2]
[314575666,1708429839505,-500.0,0.00037259,2]
[314575667,1708429839514,-500.0,0.00037259,2]
[314575668,1708429839523,-500.0,0.00037259,2]
[314575669,1708429839532,-500.0,0.00037259,2]
[314575670,1708429839541,-603.78,0.00037259,2]
[314575671,1708429839550,-500.0,0.00037259,2]
[314575672,1708429839559,-3142.23,0.00037259,2]
[314575673,1708429839567,-500.0,0.00037259,2]
[314575674,1708429839577,-500.0,0.00037259,2]
[314575675,1708429839586,-648.5,0.00037259,2]
[314575676,1708429839596,-500.0,0.00037259,2]
[314575677,1708429839609,-500.0,0.0003726,2]
[314575678,1708429839619,-1000.0,0.0003726,7]
[314575679,1708429839628,-500.0,0.0003726,2]
[314575680,1708429839637,-500.54,0.0003726,2]
[314575681,1708429839647,-500.0,0.0003726,2]
[314575682,1708429839656,-500.0,0.0003726,2]
[314575683,1708429839666,-500.0,0.0003726,2]
[314575684,1708429839675,-500.0,0.0003726,2]
[314575685,1708429839684,-500.0,0.0003726,2]
[314575686,1708429839694,-744.15,0.0003726,2]
[314575687,1708429839704,-892.39,0.0003726,2]
[314575688,1708429839713,-500.0,0.0003726,2]
[314575689,1708429839723,-500.0,0.0003726,2]
[314575690,1708429839733,-500.0,0.0003726,2]
[314575691,1708429839743,-500.0,0.0003726,2]
[314575692,1708429839752,-500.0,0.0003726,2]
[314575693,1708429839761,-500.0,0.0003726,2]
[314575694,1708429839771,-749.37,0.0003726,2]
[314575695,1708429839780,-500.0,0.0003726,2]
[314575696,1708429839789,-541.65,0.0003726,2]
[314575697,1708429839798,-567.33,0.0003726,2]
[314575698,1708429839807,-500.0,0.0003726,2]
[314575699,1708429839817,-516.21609222,0.0003726,2]
[314575700,1708429839827,-500.0,0.0003726,2]
[314575701,1708429839836,-1065.98,0.0003726,2]
[314575702,1708429839845,-851.53,0.0003726,2]
[314575703,1708429839860,-2278.8,0.0003726,2]
[314575704,1708429839870,-500.0,0.0003726,2]
[314575705,1708429839879,-615.43,0.0003726,2]
[314575706,1708429839888,-500.0,0.0003726,2]
[314575707,1708429839897,-962.24,0.0003726,2]
[314575708,1708429839906,-500.0,0.0003726,2]
[314575709,1708429839915,-1000.0,0.00037327,2]
[314575710,1708429839924,-165.53,0.00037397,2]
[314575711,1708429839934,-157.95179592,0.00037444,2]
[314575712,1708429839943,-180.77,0.0003746,2]
[314575713,1708429839952,-500.0,0.00037533,2]
[314575714,1708429839961,-500.0,0.00037533,2]
[314575715,1708429839970,-500.0,0.00037533,2]
[314575716,1708429839980,-500.0,0.00037533,2]
[314575717,1708429839989,-500.0,0.00037533,2]
[314575718,1708429839998,-603.78,0.00037533,2]
[314575719,1708429840009,-500.0,0.00037533,2]
[314575720,1708429840018,-3142.23,0.00037533,2]
[314575721,1708429840027,-500.0,0.00037533,2]
[314575722,1708429840037,-500.0,0.00037533,2]
[314575723,1708429840047,-648.5,0.00037533,2]
[314575724,1708429840057,-500.0,0.00037533,2]
[314575725,1708429840067,-267.5886686,0.00037534,2]
[314575726,1708429840076,-1000.0,0.00037534,7]
[314575727,1708429840086,-500.0,0.00037534,2]
[314575728,1708429840097,-500.54,0.00037534,2]
[314575729,1708429840110,-500.0,0.00037534,2]
[314575730,1708429840119,-500.0,0.00037534,2]
[314575731,1708429840128,-500.0,0.00037534,2]
[314575732,1708429840137,-500.0,0.00037534,2]
[314575733,1708429840146,-500.0,0.00037534,2]
[314575734,1708429840155,-744.15,0.00037534,2]
[314575735,1708429840164,-892.39,0.00037534,2]
[314575736,1708429840173,-500.0,0.00037534,2]
[314575737,1708429840182,-500.0,0.00037534,2]
[314575738,1708429840193,-500.0,0.00037534,2]
[314575739,1708429840201,-500.0,0.00037534,2]
[314575740,1708429840211,-500.0,0.00037534,2]
[314575741,1708429840220,-299.16242505,0.00037534,2]
[314575742,1708429840229,-749.37,0.00037534,2]
[314575743,1708429840238,-500.0,0.00037534,2]
[314575744,1708429840248,-541.65,0.00037534,2]
[314575745,1708429840257,-567.33,0.00037534,2]
[314575746,1708429840266,-236.70233278,0.00037534,2]
[314575747,1708429840275,-500.0,0.00037534,2]
[314575748,1708429840284,-1065.98,0.00037534,2]
[314575750,1708429840294,-851.53,0.00037534,2]
[314575752,1708429840303,-2278.8,0.00037534,2]
[314575753,1708429840312,-500.0,0.00037534,2]
[314575754,1708429840322,-615.43,0.00037534,2]
[314575755,1708429840332,-500.0,0.00037534,2]
[314575756,1708429840341,-962.24,0.00037534,2]
[314575757,1708429840351,-500.0,0.00037534,2]
[314575758,1708429840362,-200.0,0.00037575,3]
[314575759,1708429840371,-163.61,0.00037576,2]
[314575760,1708429840380,-204.0,0.00037641,7]
[314575761,1708429840389,-902.48976294,0.00037643,2]
[314575762,1708429840398,-180.0,0.00037671,2]
[314575763,1708429840407,-701.81610333,0.000377,2]
[314575764,1708429840417,-11135.12406197,0.00037773,2]
[314575765,1708429840426,-61690.95487228,0.0003778,2]
[314575766,1708429840435,-500.0,0.00037807,2]
[314575767,1708429840445,-500.0,0.00037807,2]
[314575768,1708429840454,-500.0,0.00037807,2]
[314575769,1708429840462,-500.0,0.00037807,2]
[314575770,1708429840471,-500.0,0.00037807,2]
[314575771,1708429840480,-603.78,0.00037807,2]
[314575772,1708429840489,-500.0,0.00037807,2]
[314575773,1708429840499,-3142.23,0.00037807,2]
[314575774,1708429840508,-500.0,0.00037807,2]
[314575775,1708429840518,-504.23,0.00037807,2]
[314575776,1708429840528,-648.5,0.00037807,2]
[314575777,1708429840537,-500.0,0.00037807,2]
[314575778,1708429840546,-363.10784521,0.00037808,7]
[314575779,1708429840555,-500.0,0.00037808,2]
[314575780,1708429840564,-500.54,0.00037808,2]
[314575781,1708429840574,-500.0,0.00037808,2]
[314575782,1708429840583,-500.0,0.00037808,2]
[314575783,1708429840592,-500.0,0.00037808,2]
[314575784,1708429840604,-466.96433888,0.00037808,2]
[314575785,1708429840613,-500.0,0.00037808,2]
[314575786,1708429840622,-744.15,0.00037808,2]
[314575787,1708429840631,-892.39,0.00037808,2]
[314575788,1708429840640,-500.0,0.00037808,2]
[314575789,1708429840649,-500.0,0.00037808,2]
[314575790,1708429840659,-500.0,0.00037808,2]
[314575791,1708429840667,-749.37,0.00037808,2]
[314575792,1708429840677,-548.09108485,0.00037808,2]
[314575793,1708429840686,-541.65,0.00037808,2]
[314575794,1708429840695,-567.33,0.00037808,2]
[314575795,1708429840704,-500.0,0.00037808,2]
[314575796,1708429840713,-1065.98,0.00037808,2]
[314575797,1708429840722,-851.53,0.00037808,2]
[314575798,1708429840731,-2278.8,0.00037808,2]
[314575799,1708429840740,-500.0,0.00037808,2]
[314575800,1708429840749,-615.43,0.00037808,2]
[314575801,1708429840758,-417.96767116,0.00037808,2]
[314575802,1708429840767,-962.24,0.00037808,2]
[314575803,1708429840776,-500.0,0.00037808,2]
[314575804,1708429840785,-302.4,0.00037822,2]
[314575805,1708429840793,-6431.45933825,0.000379,2]
[314575806,1708429841265,-500.0,0.00035616,2]
[314575807,1708429841275,-500.0,0.00035616,2]
[314575808,1708429841285,-500.0,0.00035889,2]
[314575809,1708429841295,-500.0,0.00035889,2]
[314575810,1708429841304,-500.0,0.00035889,2]
[314575811,1708429841314,-66728.27888612,0.000379,2]
[314575812,1708429841325,-41863.10061247,0.000379,2]
[314575813,1708429841469,-1624.19106183,0.000379,2]
[314575814,1708429841481,-541.90799385,0.000379,2]
[314575815,1708429841493,-395.98482754,0.000379,2]
[314575816,1708429841504,-296.43501175,0.000379,2]
[314575817,1708429841532,-500.0,0.00035889,2]
[314575818,1708429841541,-7087.43925334,0.000379,2]
[314575819,1708429841553,-7492.84323539,0.000379,2]
[314575820,1708429841567,-935.41327598,0.000379,2]
[314575821,1708429841579,-5947.43366772,0.000379,2]
[314575822,1708429841590,-25376.78698705,0.000379,2]
[314575823,1708429841695,-1245.70852761,0.000288,2]
[314575824,1708429841707,-1742.68407239,0.000288,2]
[314575825,1708429841717,-15377.818,0.0003417,2]
[314575826,1708429841726,-231.56,0.00035879,10]
[314575827,1708429841736,-150.199,0.00036763,2]
[314575828,1708429841745,-695.46153745,0.000379,2]
[314575829,1708429841756,-8860.81211977,0.000379,2]
[314575830,1708429841855,-579.43436957,0.000379,2]
[314575831,1708429841867,-1531.14617822,0.000379,2]
[314575832,1708429841879,-978.92607886,0.000379,2]
[314575833,1708429841890,-1906.36553316,0.000379,2]